lending/lending_fUSD_20250805
["ID","MTS","AMOUNT","RATE_DAILY","PERIOD"]
[377541158,1754435737412,-500.0,0.00042466,120]
[377541159,1754435737422,-500.0,0.00042466,14]
[377541160,1754435737431,-500.0,0.00042466,14]
[377541161,1754435737440,-211.04176781,0.00042466,14]
[377541162,1754435737450,-203.83648731,0.00042466,14]
[377541163,1754435737459,-174.29376783,0.00042466,14]
[377541164,1754435737468,-500.0,0.00042466,14]
[377541165,1754435737477,-203.51350053,0.00042466,14]
[377541166,1754435737487,-500.0,0.00042466,14]
[377541167,1754435737496,-500.0,0.00042466,14]
[377541168,1754435737505,-500.0,0.00042466,14]
[377541169,1754435737514,-500.0,0.00042466,14]
[377541170,1754435737524,-500.0,0.00042466,14]
[377541171,1754435737534,-455.0,0.00042466,14]
[377541172,1754435737543,-458.43023869,0.00042466,14]
[377541173,1754435737552,-500.0,0.00042466,14]
[377541174,1754435737561,-500.0,0.00042466,7]
[377541175,1754435737570,-500.0,0.00042466,14]
[377541176,1754435737579,-500.0,0.00042466,14]
[377541177,1754435737588,-621.0,0.00042466,14]
[377541178,1754435737597,-500.0,0.00042466,14]
[377541179,1754435737607,-892.0,0.00042518,2]
[377541180,1754435737616,-1170.0,0.00042518,2]
[377541181,1754435737626,-167.0,0.0004252,2]
[377541182,1754435737635,-1200.0,0.00042525,30]
[377541183,1754435737644,-500.0,0.0004254,30]
[377541184,1754435737653,-1200.0,0.00042571,30]
[377541185,1754435737663,-1260.91,0.00042637,14]
[377541186,1754435737671,-1083.0,0.00042649,30]
[377541187,1754435737681,-161.37,0.0004266,120]
[377541188,1754435737691,-2500.0,0.00042663,10]
[377541189,1754435737700,-500.0,0.00042663,30]
[377541190,1754435737709,-2500.0,0.00042672,10]
[377541191,1754435737718,-600.0,0.0004268,30]
[377541192,1754435737728,-2500.0,0.00042681,10]
[377541193,1754435737737,-500.0,0.00042697,30]
[377541194,1754435737746,-205.60303417,0.0004271,40]
[377541195,1754435737756,-500.0,0.00042732,30]
[377541196,1754435737768,-4582.75271703,0.00042739,14]
[377541197,1754435737777,-2447.17942285,0.00042739,14]
[377541198,1754435737787,-1400.74070928,0.00042739,14]
[377541199,1754435737796,-505.29,0.00042739,14]
[377541200,1754435737806,-933.5,0.00042739,14]
[377541201,1754435737816,-1086.27,0.00042739,14]
[377541202,1754435737825,-432.78,0.00042739,14]
[377541203,1754435737835,-2197.47378659,0.00042739,14]
[377541204,1754435737844,-677.51440485,0.00042739,14]
[377541205,1754435737853,-2216.91431371,0.00042739,14]
[377541206,1754435737862,-1894.67103602,0.00042739,14]
[377541207,1754435737872,-55910.44563083,0.00042739,14]
[377541208,1754435737881,-607.6,0.00042739,120]
[377541209,1754435737894,-2576.00444212,0.00042739,14]
[377541210,1754435737903,-615.80386374,0.00042739,14]
[377541211,1754435737913,-2549.89928561,0.00042739,14]
[377541212,1754435737923,-2625.89347665,0.00042739,14]
[377541213,1754435737934,-1340.59,0.00042739,14]
[377541214,1754435737943,-1431.82101443,0.00042739,14]
[377541215,1754435737952,-1207.88079557,0.00042739,14]
[377541216,1754435737962,-2706.00049073,0.00042739,14]
[377541217,1754435737971,-3608.88569949,0.00042739,14]
[377541218,1754435737980,-2313.61541253,0.00042739,14]
[377541219,1754435737990,-450.0,0.0004274,10]
[377541220,1754435738000,-1230.0,0.0004274,14]
[377541221,1754435738010,-500.0,0.0004274,14]
[377541222,1754435738021,-500.0,0.0004274,120]
[377541223,1754435738030,-366.16952942,0.0004274,14]
[377541224,1754435738039,-500.0,0.0004274,14]
[377541225,1754435738048,-500.0,0.0004274,14]
[377541226,1754435738057,-577.30268468,0.0004274,14]
[377541227,1754435738067,-500.0,0.0004274,14]
[377541228,1754435738076,-500.0,0.0004274,14]
[377541229,1754435738085,-518.1277484,0.0004274,14]
[377541230,1754435738094,-500.0,0.0004274,14]
[377541231,1754435738103,-455.0,0.0004274,14]
[377541232,1754435738112,-500.0,0.0004274,14]
[377541233,1754435738122,-226.48699182,0.0004274,14]
[377541234,1754435738131,-500.0,0.0004274,14]
[377541235,1754435738141,-621.0,0.0004274,14]
[377541236,1754435738150,-500.0,0.0004274,14]
[377541237,1754435738159,-1000.0,0.00042782,30]
[377541238,1754435738168,-1200.0,0.00042785,30]
[377541239,1754435738177,-1200.0,0.00042792,30]
[377541240,1754435738187,-706.68,0.00042823,120]
[377541241,1754435738196,-283.03,0.00042824,120]
[377541242,1754435738205,-500.0,0.00042825,30]
[377541243,1754435738214,-1000.0,0.00042848,30]
[377541244,1754435738224,-600.0,0.00042857,30]
[377541245,1754435738233,-500.0,0.00042876,30]
[377541246,1754435738243,-1261.0709821,0.00042911,14]
[377541247,1754435738252,-500.0,0.0004293,30]
[377541248,1754435738261,-600.0,0.00042963,30]
[377541249,1754435738271,-1200.0,0.00042984,30]
[377541250,1754435738281,-1000.0,0.00043,120]
[377541251,1754435738289,-900.0,0.00043,44]
[377541252,1754435738299,-2968.08836786,0.00043,120]
[377541253,1754435739724,-400.0,0.00039178,14]
[377541254,1754435739733,-719.78,0.00039178,14]
[377541255,1754435739743,-1231.82,0.00040821,14]
[377541256,1754435739752,-1066.2571184,0.00043,120]
[377541257,1754435740356,-865.0,0.00035217,2]
[377541258,1754435740366,-400.0,0.00035616,14]
[377541259,1754435740375,-400.0,0.0003589,14]
[377541260,1754435740384,-400.0,0.00036164,14]
[377541261,1754435740394,-1626.57029593,0.00036438,2]
[377541262,1754435740421,-421.48223619,0.00036438,2]
[377541263,1754435741003,-400.0,0.00035616,14]
[377541264,1754435741013,-400.0,0.00035616,14]
[377541265,1754435741023,-400.0,0.00035616,14]
[377541266,1754435741032,-400.0,0.0003589,14]
[377541267,1754435741042,-400.0,0.0003589,14]
[377541268,1754435741051,-400.0,0.0003589,14]
[377541269,1754435741060,-82.5746764,0.00036164,14]
[377541270,1754435742119,-545.52,0.00035616,14]
[377541280,1754436088816,165.78,0.00013699,2]
[377541284,1754436308254,12833.990001,0.00019,2]
[377541285,1754436308296,1912559.47746612,0.00019,2]
[377541286,1754436308339,50000.0,0.00019,2]
[377541287,1754436308388,50000.0,0.00019,2]
[377541288,1754436308430,28500.0,0.00019,2]
[377541289,1754436308457,50000.0,0.00019,2]
[377541290,1754436309002,-334.72108319,0.00019,2]
[377541291,1754436313593,-153.53714706,0.00019,2]
[377541293,1754436318626,-399.44149282,0.00019,2]
[377541294,1754436320373,-2015.63,0.00019,2]
[377541295,1754436321909,-206.41093475,0.00019,2]
[377541296,1754436323515,-151.0,0.00019,2]
[377541297,1754436326021,-156.54146436,0.00019,2]
[377541299,1754436328310,-296.07070577,0.00019,2]
[377541300,1754436330781,-284.68908825,0.00019,2]
[377541301,1754436334738,-151.0,0.00019,2]
[377541302,1754436336879,-202.14191057,0.00019,2]
[377541304,1754436342663,-171.38739838,0.00019,2]
[377541305,1754436346187,-175.12444043,0.00019,2]
[377541306,1754436352230,-191.6690651,0.00019,2]
[377541307,1754436355016,-257.60897176,0.00019,2]
[377541316,1754436388467,1714.70976527,0.00015,2]
[377541317,1754436402160,-275.74617855,0.00019,2]
[377541318,1754436408140,-460.46562476,0.00019,2]
[377541320,1754436445383,-218.97798219,0.00018999,2]
[377541321,1754436459307,-151.0,0.00018999,2]
[377541322,1754436467683,-198.02201781,0.00018999,2]
[377541323,1754436467713,-15.1008329,0.00018999,2]
[377541324,1754436472129,-169.4,0.00018999,2]
[377541325,1754436474610,-115.4991671,0.00018999,2]
[377541326,1754436474639,-246.82688795,0.00018999,2]
[377541327,1754436474665,-19.404636,0.00019,2]
[377541328,1754436479142,-190.97518354,0.00019,2]
[377541329,1754436482714,-300.0,0.00018999,2]
[377541330,1754436482741,-90.63845161,0.00019,2]
[377541331,1754436486173,-182.94819628,0.00018973,2]
[377541332,1754436490269,-238.11660939,0.00018973,2]
[377541333,1754436494509,-78.93519433,0.00018973,2]
[377541334,1754436494534,-100.97353731,0.00018973,2]
[377541335,1754436496788,-317.02220921,0.00018973,2]
[377541336,1754436498494,-82.00425348,0.00018973,2]
[377541337,1754436498522,-148.59203171,0.00018999,2]
[377541338,1754436502832,-282.97779079,0.00018999,2]
[377541339,1754436505636,-193.93837378,0.00018999,2]
[377541340,1754436507183,-152.81954974,0.000189,2]
[377541341,1754436510885,-15.87257991,0.000189,2]
[377541342,1754436510912,-273.43820064,0.00018999,2]
[377541343,1754436514593,-101.05360308,0.00018999,2]
[377541344,1754436514623,-271.32801554,0.00019,2]
[377541355,1754436523883,-152.63,0.00019,2]
[377541356,1754436525787,-179.57507455,0.00019,2]
[377541357,1754436528038,157.79846536,0.000189,3]
[377541358,1754436528128,-179.8775,0.000189,2]
[377541360,1754436532788,157.79846534,0.00019001,3]
[377541361,1754436533669,-200.0,0.000189,2]
[377541362,1754436536618,-256.96934083,0.000189,2]
[377541363,1754436538413,157.79846534,0.00019102,3]
[377541364,1754436539415,-231.76177742,0.000189,2]
[377541365,1754436544031,-292.85009886,0.000189,2]
[377541366,1754436544056,-199.04087577,0.000189,2]
[377541367,1754436546291,-184.55877571,0.000189,2]
[377541368,1754436546317,-50.85959432,0.00018999,2]
[377541369,1754436557090,-249.14040568,0.00018999,2]
[377541370,1754436557113,-3615.03546232,0.00019,2]
[377541371,1754436588859,-156.82,0.00018801,2]
[377541372,1754436589490,-23.0575,0.00018801,2]
[377541373,1754436589516,-128.9425,0.000189,2]
[377541374,1754436592156,-204.26135384,0.000189,2]
[377541375,1754436592181,-60.69091843,0.000189,2]
[377541376,1754436602691,4000.0,0.0002,4]
[377541377,1754436603055,4000.0,0.00021,4]
[377541378,1754436603423,4000.0,0.00022,4]
[377541379,1754436603800,4000.0,0.00023,4]
[377541384,1754436632124,-179.57507455,0.000188,2]
[377541385,1754436632134,-72.77370546,0.00018899,2]
[377541386,1754436632165,666.0,0.00021984,3]
[377541387,1754436632200,-227.22629454,0.00018899,2]
[377541388,1754436632210,-245.0,0.00018899,2]
[377541389,1754436632220,-737.0,0.00018899,2]
[377541390,1754436632229,-120.37196737,0.000189,2]
[377541391,1754436632239,-1673.0551797,0.000189,2]
[377541392,1754436632252,-21061.66274472,0.000189,2]
[377541393,1754436632262,-24760.80261886,0.000189,2]
[377541395,1754436632272,-4552.506407,0.000189,2]
[377541397,1754436632281,-181.0628858,0.000189,2]
[377541399,1754436632291,-181.0628858,0.000189,2]
[377541400,1754436632301,-333.20385384,0.00018901,2]
[377541401,1754436632311,-4552.506407,0.00018901,2]
[377541402,1754436632320,-181.0628858,0.00018901,2]
[377541403,1754436632329,-181.0628858,0.00018901,2]
[377541404,1754436632339,-333.20385384,0.00018901,2]
[377541405,1754436632349,-181.0628858,0.00018901,2]
[377541406,1754436632358,-3744.74590337,0.00018901,2]
[377541407,1754436632452,-807.76050363,0.00018901,2]
[377541408,1754436632462,-29.22856801,0.00018973,2]
[377541409,1754436632473,-470.77143199,0.00018973,2]
[377541412,1754436632484,-500.0,0.00018973,2]
[377541415,1754436632493,-500.0,0.00018973,2]
[377541418,1754436632502,-423.65102129,0.0001899,2]
[377541421,1754436632511,-423.65102129,0.0001899,2]
[377541423,1754436632521,-423.65102129,0.0001899,2]
[377541425,1754436632531,-215.69,0.0001899,2]
[377541428,1754436632549,-215.69,0.0001899,2]
[377541431,1754436632559,-12410.26951667,0.00019,2]
[377541433,1754436632570,-35038.74852951,0.00019,2]
[377541435,1754436632582,-4026.7663,0.00019,2]
[377541438,1754436632593,-1993.85410016,0.00019,2]
[377541442,1754436632650,-10519.51873943,0.00019,2]
[377541444,1754436632662,-52127.79541584,0.00019,2]
[377541446,1754436632673,-10011.19207991,0.00019,2]
[377541454,1754436637369,934.30132702,0.00030136,120]
[377541458,1754436638096,-5348139.92502258,0.00019,2]
[377541459,1754436638107,-437.94,0.00019,2]
[377541460,1754436638255,-258.8503,0.00019,2]
[377541620,1754436640053,-3502339.14678264,0.00019,2]
[377541623,1754436640064,-356.02659705,0.00019,2]
[377541625,1754436640076,-1405.84485352,0.00019,2]
[377541627,1754436640087,-570.75,0.00019,2]
[377541788,1754436641617,-152.06,0.00019,2]
[377541950,1754436642982,-445.86042365,0.00019,2]
[377541978,1754436643143,-1985.29209656,0.00019,2]
[377541981,1754436643154,-490.0,0.00019,2]
[377542051,1754436643803,-273.94045152,0.00019,2]
[377542250,1754436646054,-674.13794455,0.00019,2]
[377542252,1754436646066,-6053.5,0.00019,2]
[377542402,1754436647487,-258.1839178,0.00019,2]
[377542659,1754436650129,-199.5238878,0.00019,2]
[377543030,1754436655808,-211.91045164,0.00019,2]
[377543031,1754436657614,-159.0,0.00019,2]
[377543032,1754436661695,-307.66,0.00019,2]
[377543034,1754436797499,-182.94819629,0.000188,2]
[377543035,1754436832558,355.04654706,0.000189,3]
[377543037,1754436893439,-346.69078199,0.0001862,2]
[377543038,1754436898120,-240.28821801,0.0001862,2]
[377543042,1754437079493,150.35,0.00013699,2]
[377543043,1754437145454,-161.02399056,0.000188,2]
[377543044,1754437150526,-21.92420572,0.000188,2]
[377543045,1754437194267,-270.3621978,0.000187,2]
[377543046,1754437198458,-151.0,0.000187,2]
[377543047,1754437200175,-336.20716482,0.000187,2]
[377543048,1754437205802,-196.4733362,0.000187,2]
[377543049,1754437209835,-173.33,0.000187,2]
[377543050,1754437215942,-224.20266187,0.000187,2]
[377543051,1754437224196,150.0,0.00024,3]
[377543052,1754437225091,278.21984,0.00024,3]
[377543053,1754437344321,-193.14582718,0.00018799,2]
[377543054,1754437346522,-157.24,0.00018799,2]
[377543055,1754437351410,-151.0,0.00018799,2]
[377543056,1754437353247,-258.96369212,0.00018799,2]
[377543057,1754437358049,-290.59753627,0.00018799,2]
[377543058,1754437362610,-216.68422333,0.00018799,2]
[377543059,1754437365776,-172.2058,0.00018799,2]
[377543060,1754437368262,-461.82322736,0.00018799,2]
[377543061,1754437373896,-174.65327448,0.00018799,2]
[377543062,1754437378235,-178.632,0.00018799,2]
[377543063,1754437380909,1003.84957243,0.0003,120]
[377543064,1754437381833,-151.0,0.00018799,2]
[377543065,1754437384460,-225.59494378,0.00018799,2]
[377543066,1754437392688,-165.80323268,0.00018799,2]
[377543069,1754437396666,-227.65271213,0.00018799,2]
[377543070,1754437426056,669.23304828,0.0003,120]
[377543071,1754437437578,-151.0,0.00018799,2]
[377543072,1754437440752,-357.05624714,0.00018799,2]
[377543073,1754437455676,-166.47909726,0.00018799,2]
[377543074,1754437457529,-151.0,0.00018799,2]
[377543075,1754437459784,150.0,0.0002185,5]
[377543076,1754437461927,-222.19601726,0.00018799,2]
[377543077,1754437471251,446.15536552,0.0003,120]
[377543078,1754437471533,-152.00883827,0.00018799,2]
[377543079,1754437473102,-181.56924,0.00018799,2]
[377543080,1754437477905,-282.95393583,0.00018799,2]
[377543092,1754437481881,-154.17198448,0.00018799,2]
[377543153,1754437488245,-181.56922904,0.00018799,2]
[377543191,1754437493832,-13.74657574,0.00018799,2]
[377543335,1754437522430,150.0,0.00017088,2]
[377543336,1754437522485,150.0,0.00017562,2]
[377543337,1754437522529,150.0,0.00018037,2]
[377543339,1754437522585,150.0,0.00018512,2]
[377543341,1754437522837,150.0,0.00017088,2]
[377543342,1754437522874,150.0,0.00017359,2]
[377543343,1754437522949,150.0,0.0001763,2]
[377543344,1754437523062,150.0,0.00017901,2]
[377543345,1754437523095,150.0,0.00018173,2]
[377543346,1754437523156,150.0,0.00018444,2]
[377543347,1754437523325,150.0,0.00017088,2]
[377543349,1754437523370,150.0,0.00017721,2]
[377543351,1754437523476,150.0,0.00018353,2]
[377543366,1754437527487,150.0,0.00017088,2]
[377543367,1754437527527,150.0,0.00017721,2]
[377543368,1754437527594,150.0,0.00018353,2]
[377543374,1754437529049,150.0,0.00017088,2]
[377543386,1754437534534,150.0,0.00017088,2]
[377543411,1754437542345,150.0,0.00017088,2]
[377543413,1754437542451,150.0,0.00017088,2]
[377543414,1754437542693,150.0,0.00017088,2]
[377543421,1754437545175,150.0,0.00017088,2]
[377543469,1754437560920,297.43691035,0.0003,120]
[377543530,1754437582083,150.0,0.0002185,5]
[377543539,1754437585319,-150.0,0.00018715,2]
[377543540,1754437585344,-124.51189937,0.00018728,2]
[377543565,1754437591062,-347.33129298,0.00018728,2]
[377543571,1754437593154,-250.0,0.00018728,2]
[377543585,1754437595204,-154.92800686,0.00018728,2]
[377543649,1754437606570,198.29127357,0.0003,120]
[377543691,1754437616134,-388.93685677,0.00018899,2]
[377543945,1754437677658,2222.05506718,0.000189,3]
[377544081,1754437719276,258.75673016,0.0002185,5]
[377544229,1754437792867,-382.75795708,0.000187,2]
[377544249,1754437800480,-151.0,0.000187,2]
[377544259,1754437803423,-228.1,0.000187,2]
[377544260,1754437804739,2021.2260178,0.0002,4]
[377544261,1754437804766,1978.7739822,0.0002,4]
[377544262,1754437804897,4000.0,0.0002,4]
[377544264,1754437805067,4000.0,0.0002,4]
[377544266,1754437805416,4000.0,0.0002,4]
[377544268,1754437805636,-505.04373129,0.000187,2]
[377544270,1754437805776,4000.0,0.0002,4]
[377544274,1754437806113,4000.0,0.0002,4]
[377544276,1754437806703,4000.0,0.0002,4]
[377544285,1754437808085,4000.0,0.0002,4]
[377544288,1754437808417,-187.05247267,0.000187,2]
[377544290,1754437808447,4000.0,0.0002,4]
[377544293,1754437808874,4000.0,0.0002,4]
[377544304,1754437810433,-153.37918463,0.000187,2]
[377544311,1754437811911,113.72676638,0.00015452,2]
[377544312,1754437811935,55.94323362,0.00015452,2]
[377544321,1754437814258,-260.04811075,0.000187,2]
[377544329,1754437816561,-160.68507157,0.000187,2]
[377544333,1754437818013,-31.69347201,0.000187,2]
[377544366,1754437830881,198.29127357,0.0003,120]
[377544375,1754437832242,-300.0,0.00018898,2]
[377544376,1754437832252,-1200.0,0.00018898,2]
[377544377,1754437832261,-300.0,0.00018898,2]
[377544378,1754437832272,-206.0407889,0.00018899,2]
[377544379,1754437832282,-300.0,0.00018899,2]
[377544380,1754437832292,-342.46047083,0.00018899,2]
[377544381,1754437832302,-704.10011083,0.000189,2]
[377544382,1754437832312,-716.296,0.000189,2]
[377544383,1754437832322,-585.47931065,0.000189,2]
[377544384,1754437832332,-9361.73264049,0.000189,2]
[377544385,1754437832342,-2447.30048183,0.000189,2]
[377544387,1754437832353,-5534.31921937,0.000189,2]
[377544388,1754437832362,-581.99804258,0.000189,2]
[377544389,1754437832372,-601.00738111,0.000189,2]
[377544390,1754437832382,-93297.83010078,0.000189,2]
[377544391,1754437832391,-6724.5873162,0.000189,2]
[377544392,1754437832401,-1804.01935454,0.000189,2]
[377544393,1754437832412,-15669.10400907,0.00018972,2]
[377544394,1754437832421,-160.98039091,0.00018973,2]
[377544395,1754437832431,-500.0,0.00018973,2]
[377544396,1754437832440,-500.0,0.00018973,2]
[377544397,1754437832450,-157.93003953,0.00018973,2]
[377544398,1754437832460,-500.0,0.00018973,2]
[377544399,1754437832469,-168.78587853,0.00018973,2]
[377544400,1754437832479,-500.0,0.00018973,2]
[377544401,1754437832489,-168.7628387,0.00018973,2]
[377544402,1754437832499,-201.52588742,0.00018973,2]
[377544403,1754437832508,-165.45862044,0.00018973,2]
[377544404,1754437832518,-628.19023224,0.00018973,2]
[377544405,1754437832527,-500.0,0.00018973,2]
[377544406,1754437832539,-500.98212689,0.00018973,2]
[377544407,1754437832548,-500.60830175,0.00018973,2]
[377544408,1754437832558,-500.0,0.00018973,2]
[377544409,1754437832567,-172.69522436,0.00018973,2]
[377544410,1754437832577,-500.0,0.00018973,2]
[377544412,1754437832587,-167.9722628,0.00018973,2]
[377544413,1754437832596,-500.0,0.00018973,2]
[377544414,1754437832606,-537.3849767,0.00018973,2]
[377544415,1754437832616,-500.0,0.00018973,2]
[377544416,1754437832625,-500.0,0.00018973,2]
[377544417,1754437832634,-500.0,0.00018973,2]
[377544418,1754437832644,-500.0,0.00018973,2]
[377544419,1754437832653,-500.0,0.00018973,2]
[377544420,1754437832663,-504.07526614,0.00018973,2]
[377544421,1754437832672,-500.0,0.00018973,2]
[377544422,1754437832681,-500.0,0.00018973,2]
[377544423,1754437832690,-500.0,0.00018973,2]
[377544424,1754437832700,-219.320623,0.00018973,2]
[377544425,1754437832709,-500.0,0.00018973,2]
[377544426,1754437832718,-500.0,0.00018973,2]
[377544428,1754437832728,-500.0,0.00018973,2]
[377544430,1754437832738,-500.0,0.00018973,2]
[377544432,1754437832748,-500.0,0.00018973,2]
[377544434,1754437832763,-500.0,0.00018973,2]
[377544436,1754437832774,-500.0,0.00018973,2]
[377544438,1754437832786,-500.0,0.00018973,2]
[377544440,1754437832796,-500.0,0.00018973,2]
[377544442,1754437832806,-184.57710815,0.00018986,2]
[377544444,1754437832815,-253.87764895,0.00018986,2]
[377544446,1754437832824,-150.0,0.00018986,2]
[377544448,1754437832834,-150.0,0.00018986,2]
[377544449,1754437832844,-150.0,0.00018986,2]
[377544450,1754437832854,-150.0,0.00018986,2]
[377544451,1754437832863,-150.0,0.00018986,2]
[377544452,1754437832873,-150.0,0.00018986,2]
[377544453,1754437832883,-422.72412837,0.00018989,2]
[377544454,1754437832897,-227.17702727,0.00018989,2]
[377544455,1754437832907,-526.07147326,0.0001899,2]
[377544456,1754437832916,-526.07147326,0.0001899,2]
[377544457,1754437832926,-526.07147326,0.0001899,2]
[377544458,1754437832937,-317.85780385,0.00018999,2]
[377544459,1754437832947,-258.02831829,0.00018999,2]
[377544460,1754437832957,-300.0,0.00018999,2]
[377544461,1754437832970,-300.0,0.00018999,2]
[377544463,1754437832980,-300.0,0.00018999,2]
[377544464,1754437832990,-666.0,0.00018999,2]
[377544465,1754437833000,-225257.09541141,0.00019,2]
[377544467,1754437833013,-989002.30747078,0.00019,2]
[377544471,1754437833049,-701.0,0.00019,2]
[377544476,1754437833089,-291.97373716,0.00018972,2]
[377544478,1754437833100,-500.0,0.00018972,2]
[377544480,1754437833109,-223.56819057,0.00018972,2]
[377544482,1754437833119,-43594.53970409,0.00019,2]
[377544484,1754437833130,-266.76562038,0.00019,2]
[377544491,1754437833461,-500.0,0.00018972,2]
[377544492,1754437833471,-500.0,0.00018972,2]
[377544494,1754437833481,-500.0,0.00018972,2]
[377544495,1754437833491,-500.0,0.00018972,2]
[377544496,1754437833500,-129962.83327056,0.00019,2]
[377544497,1754437833512,-50609.73451969,0.00019,2]
[377544498,1754437833524,-23899.95140952,0.00019,2]
[377544499,1754437833537,-35609.07636617,0.00019,2]
[377544500,1754437833550,-37881.36716779,0.00019,2]
[377544501,1754437833562,-11974.2999995,0.00019,2]
[377544502,1754437833573,-10771.41715918,0.00019,2]
[377544522,1754437838078,-500.0,0.00018972,2]
[377544523,1754437838087,-500.0,0.00018972,2]
[377544524,1754437838097,-500.0,0.00018972,2]
[377544525,1754437838106,-500.0,0.00018972,2]
[377544526,1754437838115,-500.0,0.00018972,2]
[377544527,1754437838124,-500.0,0.00018972,2]
[377544528,1754437838133,-500.0,0.00018972,2]
[377544529,1754437838143,-342.69827429,0.00018972,2]
[377544530,1754437838152,-500.0,0.00018972,2]
[377544531,1754437838162,-22203.75246703,0.00019,2]
[377544532,1754437838181,-405.17512303,0.00019,2]
[377544533,1754437838249,-3510.60789685,0.00019,2]
[377544534,1754437838261,-3409.05115195,0.00019,2]
[377544535,1754437838277,-1025.5020456,0.00019,2]
[377544536,1754437838290,-1476.42,0.00019,2]
[377544537,1754437838301,-290.18541867,0.00019,2]
[377544538,1754437838329,-2166.37608666,0.00019,2]
[377544539,1754437838532,-4339081.362475,0.00019,2]
[377544548,1754437840153,-29421.22523256,0.00019,2]
[377544550,1754437840164,-1747.6967757,0.00019,2]
[377544552,1754437840177,-24105.18541691,0.00019,2]
[377544562,1754437840297,-6687134.05499197,0.00019,2]
[377544565,1754437840309,-1888.04552895,0.00019,2]
[377544568,1754437840332,-577.87853944,0.00019,2]
[377544577,1754437840404,-4660.48402914,0.00019,2]
[377544582,1754437840877,-175.95917043,0.00019,2]
[377544583,1754437840916,-5735.0,0.00019,2]
[377544584,1754437840928,-227.14320087,0.00019,2]
[377544585,1754437840938,-655.32282264,0.00019,2]
[377544586,1754437840949,-28800.0,0.00019,2]
[377544587,1754437840976,-494.99999995,0.00019,2]
[377544593,1754437843367,-43.21520632,0.00019,2]
[377544594,1754437843432,-561.22,0.00019,2]
[377544596,1754437843567,-659.55599547,0.00019,2]
[377544597,1754437843578,-534.3999998,0.00019,2]
[377544598,1754437843602,-2035.92647066,0.00019,2]
[377544599,1754437843613,-9407.8970285,0.00019,2]
[377544600,1754437843624,-485.305,0.00019,2]
[377544607,1754437846244,-1065.85771823,0.00019,2]
[377544608,1754437846572,-1998.4,0.00019,2]
[377544609,1754437846584,-8997.8566,0.00019,2]
[377544807,1754437945779,5500.0,0.00018999,7]
[377544808,1754437945804,12021.2260178,0.00018999,7]
[377544809,1754437945829,50000.0,0.00018999,7]
[377544810,1754437945855,50000.0,0.00018999,7]
[377544891,1754437993223,-160.68507157,0.00018989,2]
[377544892,1754437993252,-58.19058911,0.00018989,2]
[377545096,1754438169297,480.0,0.00030136,120]
[377545097,1754438170367,193.59,0.00025273,120]
[377545098,1754438170750,193.59,0.00028432,120]
[377545120,1754438215248,150.99,0.00013699,2]
[377545179,1754438274048,-186.50044592,0.000187,2]
[377545180,1754438277939,-163.55083559,0.000187,2]
[377545183,1754438281241,-49.94871849,0.000187,2]
[377545209,1754438351338,-252.03493119,0.00018699,2]
[377545216,1754438354106,-194.31927988,0.00018699,2]
[377545224,1754438357915,-338.93170617,0.00018699,2]
[377545225,1754438361122,-91.48528197,0.00018699,2]
[377545226,1754438392222,-208.51471803,0.000187,2]
[377545227,1754438394579,-188.61,0.000187,2]
[377545228,1754438398009,-16.63528197,0.000187,2]